[Event "Schack-SM 2023: Sverigemastarklassen"]
[Site "Helsingborg Arena, Mellersta Stenbocksgatan 14, Helsingborg, Sweden"]
[Date "2023.07.01"]
[Round "1.2"]
[White "Sivuk, Vitaly"]
[Black "Seo, Jung Min"]
[Result "1-0"]
[TimeControl "90 minutes for 40 moves + 30 minutes for the rest of the game + 30 seconds per move from move one."]
[WhiteTitle "GM"]
[BlackTitle "IM"]
[WhiteElo "2432"]
[BlackElo "2469"]

1. d4 {[%clk 01:30:53]} {[%emt 00:00:05]} Nf6 {[%clk 01:30:59]} {[%emt
00:00:02]} 2. c4 {[%clk 01:31:10]} {[%emt 00:00:13]} g6 {[%clk 01:31:27]}
{[%emt 00:00:02]} 3. Nc3 {[%clk 01:31:27]} {[%emt 00:00:12]} Bg7 {[%clk
01:31:26]} {[%emt 00:00:32]} 4. e4 {[%clk 01:31:45]} {[%emt 00:00:12]} d6
{[%clk 01:31:53]} {[%emt 00:00:04]} 5. f3 {[%clk 01:31:43]} {[%emt 00:00:31]}
c6 {[%clk 01:22:25]} {[%emt 00:09:58]} 6. Be3 {[%clk 01:31:52]} {[%emt
00:00:21]} a6 {[%clk 01:22:44]} {[%emt 00:00:12]} 7. a4 {[%clk 01:14:00]}
{[%emt 00:18:20]} a5 {[%clk 01:22:40]} {[%emt 00:00:34]} 8. Bd3 {[%clk
01:14:21]} {[%emt 00:00:09]} Na6 {[%clk 01:19:39]} {[%emt 00:03:32]} 9. Nge2
{[%clk 01:12:35]} {[%emt 00:02:15]} Nb4 {[%clk 01:18:49]} {[%emt 00:01:21]} 10.
O-O {[%clk 01:12:49]} {[%emt 00:00:15]} O-O {[%clk 01:18:13]} {[%emt 00:01:06]}
11. Rc1 {[%clk 01:12:39]} {[%emt 00:00:40]} e5 {[%clk 01:10:33]} {[%emt
00:08:10]} 12. d5 {[%clk 01:11:16]} {[%emt 00:01:51]} Nd7 {[%clk 01:05:10]}
{[%emt 00:05:55]} 13. Bc2 {[%clk 00:45:34]} {[%emt 00:26:11]} Nc5 {[%clk
00:45:41]} {[%emt 00:19:59]} 14. Qd2 {[%clk 00:45:50]} {[%emt 00:00:14]} cxd5
{[%clk 00:45:31]} {[%emt 00:00:42]} 15. Nxd5 {[%clk 00:44:35]} {[%emt
00:01:44]} Nxd5 {[%clk 00:44:15]} {[%emt 00:01:47]} 16. cxd5 {[%clk 00:39:47]}
{[%emt 00:05:17]} Bd7 {[%clk 00:36:14]} {[%emt 00:08:31]} 17. Ra1 {[%clk
00:31:41]} {[%emt 00:08:35]} Rc8 {[%clk 00:29:00]} {[%emt 00:07:45]} 18. b4
{[%clk 00:29:43]} {[%emt 00:02:28]} axb4 {[%clk 00:29:10]} {[%emt 00:00:20]} 19.
Qxb4 {[%clk 00:30:08]} {[%emt 00:00:04]} f5 {[%clk 00:26:24]} {[%emt 00:03:17]}
20. a5 {[%clk 00:22:40]} {[%emt 00:07:58]} fxe4 {[%clk 00:19:38]} {[%emt
00:07:16]} 21. Bxe4 {[%clk 00:20:23]} {[%emt 00:02:47]} Bf5 {[%clk 00:11:40]}
{[%emt 00:08:29]} 22. Ng3 {[%clk 00:17:00]} {[%emt 00:03:52]} Bxe4 {[%clk
00:11:48]} {[%emt 00:00:23]} 23. Nxe4 {[%clk 00:14:53]} {[%emt 00:02:36]} Nxe4
{[%clk 00:12:14]} {[%emt 00:00:04]} 24. Qxe4 {[%clk 00:14:23]} {[%emt
00:01:00]} Ra8 {[%clk 00:08:10]} {[%emt 00:04:35]} 25. Rfb1 {[%clk 00:11:20]}
{[%emt 00:03:32]} Rf7 {[%clk 00:00:55]} {[%emt 00:07:46]} 26. Rb5 {[%clk
00:10:57]} {[%emt 00:00:53]} Bf6 {[%clk 00:01:09]} {[%emt 00:00:16]} 27. h3
{[%clk 00:05:17]} {[%emt 00:06:10]} Bg5 {[%clk 00:01:32]} {[%emt 00:00:07]} 28.
Bb6 {[%clk 00:02:40]} {[%emt 00:03:07]} Qd7 {[%clk 00:01:54]} {[%emt 00:00:08]}
29. Rab1 {[%clk 00:03:05]} {[%emt 00:00:05]} Qf5 {[%clk 00:01:28]} {[%emt
00:00:57]} 30. R5b2 {[%clk 00:01:46]} {[%emt 00:01:49]} Qxe4 {[%clk 00:01:37]}
{[%emt 00:00:22]} 31. fxe4 {[%clk 00:02:14]} {[%emt 00:00:01]} Rc8 {[%clk
00:01:40]} {[%emt 00:00:27]} 32. Bf2 {[%clk 00:02:19]} {[%emt 00:00:24]} Bd8
{[%clk 00:00:59]} {[%emt 00:01:11]} 33. Be1 {[%clk 00:02:13]} {[%emt 00:00:36]}
Ra8 {[%clk 00:00:48]} {[%emt 00:00:42]} 34. Rb5 {[%clk 00:01:42]} {[%emt
00:01:00]} h5 {[%clk 00:00:36]} {[%emt 00:00:42]} 35. Bd2 {[%clk 00:01:58]}
{[%emt 00:00:15]} Rd7 {[%clk 00:00:33]} {[%emt 00:00:33]} 36. Kf1 {[%clk
00:02:02]} {[%emt 00:00:25]} Ra7 {[%clk 00:00:48]} {[%emt 00:00:15]} 37. Ke2
{[%clk 00:02:24]} {[%emt 00:00:08]} Kf7 {[%clk 00:00:41]} {[%emt 00:00:37]} 38.
Kd3 {[%clk 00:01:54]} {[%emt 00:01:00]} Ke8 {[%clk 00:00:54]} {[%emt 00:00:17]}
39. Bb4 {[%clk 00:01:44]} {[%emt 00:00:40]} Ra6 {[%clk 00:00:40]} {[%emt
00:00:44]} 40. Rc1 {[%clk 00:01:24]} {[%emt 00:00:50]} Rc7 {[%clk 00:00:34]}
{[%emt 00:00:37]} 41. Rf1 {[%clk 00:01:09]} {[%emt 00:00:44]} Rd7 {[%clk
00:28:51]} {[%emt 00:02:14]} 42. Bd2 {[%clk 00:30:24]} {[%emt 00:01:14]} Rh7
{[%clk 00:19:53]} {[%emt 00:09:29]} 43. Rc1 {[%clk 00:22:01]} {[%emt 00:08:52]}
Rc7 {[%clk 00:16:34]} {[%emt 00:03:50]} 44. Rcb1 {[%clk 00:21:31]} {[%emt
00:01:00]} Rf7 {[%clk 00:16:26]} {[%emt 00:00:38]} 45. Bc3 {[%clk 00:20:43]}
{[%emt 00:01:18]} Ra7 {[%clk 00:15:24]} {[%emt 00:01:33]} 46. R1b2 {[%clk
00:20:39]} {[%emt 00:00:33]} Kf8 {[%clk 00:12:38]} {[%emt 00:03:17]} 47. Bb4
{[%clk 00:20:18]} {[%emt 00:00:50]} Ra6 {[%clk 00:11:19]} {[%emt 00:01:50]} 48.
Rc2 {[%clk 00:19:17]} {[%emt 00:01:31]} Rc7 {[%clk 00:11:11]} {[%emt 00:00:39]}
49. Rxc7 {[%clk 00:15:23]} {[%emt 00:04:24]} Bxc7 {[%clk 00:11:38]} {[%emt
00:00:02]} 50. Kc4 {[%clk 00:15:42]} {[%emt 00:00:11]} Ra7 {[%clk 00:11:25]}
{[%emt 00:00:43]} 51. Bd2 {[%clk 00:15:00]} {[%emt 00:01:11]} Ke8 {[%clk
00:11:46]} {[%emt 00:00:10]} 52. Kb4 {[%clk 00:14:43]} {[%emt 00:00:47]} Ra8
{[%clk 00:09:36]} {[%emt 00:02:40]} 53. Bg5 {[%clk 00:13:38]} {[%emt 00:01:35]}
Rb8 {[%clk 00:09:10]} {[%emt 00:00:57]} 54. Be3 {[%clk 00:13:59]} {[%emt
00:00:08]} Ra8 {[%clk 00:09:12]} {[%emt 00:00:29]} 55. Rxb7 {[%clk 00:12:40]}
{[%emt 00:01:48]} Bxa5+ {[%clk 00:09:40]} {[%emt 00:00:04]} 56. Kb5 {[%clk
00:13:03]} {[%emt 00:00:05]} Bd8 {[%clk 00:09:46]} {[%emt 00:00:24]} 57. Kc6
{[%clk 00:12:27]} {[%emt 00:01:06]} Ra3 {[%clk 00:07:44]} {[%emt 00:02:31]} 58.
Bb6 {[%clk 00:10:16]} {[%emt 00:02:41]} Be7 {[%clk 00:08:04]} {[%emt 00:00:11]}
59. Rb8+ {[%clk 00:09:58]} {[%emt 00:00:47]} Kf7 {[%clk 00:08:31]} {[%emt
00:00:03]} 60. Bc7 {[%clk 00:10:09]} {[%emt 00:00:19]} Ra4 {[%clk 00:06:21]}
{[%emt 00:02:41]} 61. Kd7 {[%clk 00:09:03]} {[%emt 00:01:36]} Rxe4 {[%clk
00:06:44]} {[%emt 00:00:08]} 62. Rb1 {[%clk 00:06:49]} {[%emt 00:02:43]} g5
{[%clk 00:00:56]} {[%emt 00:06:18]} 63. g3 {[%clk 00:06:25]} {[%emt 00:00:53]}
Bf8 {[%clk 00:00:31]} {[%emt 00:00:56]} 64. Rf1 {[%clk 00:06:35]} {[%emt
00:00:19]} Kg7 {[%clk 00:00:39]} {[%emt 00:00:23]} 65. Ke8 {[%clk 00:02:15]}
{[%emt 00:04:50]} Re3 {[%clk 00:00:33]} {[%emt 00:00:37]} 66. Rxf8 {[%clk
00:02:19]} {[%emt 00:00:26]} Rxg3 {[%clk 00:00:54]} {[%emt 00:00:09]} 67. Bxd6
{[%clk 00:02:33]} {[%emt 00:00:15]} Rxh3 {[%clk 00:00:41]} {[%emt 00:00:43]} 68.
Bxe5+ {[%clk 00:02:54]} {[%emt 00:00:09]} Kg6 {[%clk 00:01:08]} {[%emt
00:00:04]} 69. Rf6+ {[%clk 00:03:14]} {[%emt 00:00:09]} Kh7 {[%clk 00:01:35]}
{[%emt 00:00:03]} 70. d6 {[%clk 00:03:21]} {[%emt 00:00:23]} Re3 {[%clk
00:02:02]} {[%emt 00:00:03]} 71. Re6 {[%clk 00:03:45]} {[%emt 00:00:05]} 1-0

[ePGN "0.1;DGT LiveChess/2.2.5"]

[Event "Schack-SM 2023: Mastarklassen-elit"]
[Site "Helsingborg Arena, Mellersta Stenbocksgatan 14, Helsingborg, Sweden"]
[Date "2023.07.01"]
[Round "1.1"]
[White "Wiedenkeller, Michael"]
[Black "Lindberg, Bengt"]
[Result "1/2-1/2"]
[TimeControl "90 minutes for 40 moves + 30 minutes for the rest of games + 30 seconds per move from move one."]
[WhiteTitle "IM"]
[BlackTitle "IM"]
[WhiteElo "2445"]
[BlackElo "2353"]

1. d4 {[%clk 01:30:20]} {[%emt 00:00:39]} Nf6 {[%clk 01:30:47]} {[%emt
00:00:13]} 2. Bg5 {[%clk 01:30:04]} {[%emt 00:00:46]} e6 {[%clk 01:30:55]}
{[%emt 00:00:22]} 3. e4 {[%clk 01:29:15]} {[%emt 00:01:19]} h6 {[%clk
01:31:16]} {[%emt 00:00:10]} 4. Bxf6 {[%clk 01:29:33]} {[%emt 00:00:12]} Qxf6
{[%clk 01:31:38]} {[%emt 00:00:08]} 5. c3 {[%clk 01:29:24]} {[%emt 00:00:39]}
d6 {[%clk 01:31:52]} {[%emt 00:00:16]} 6. Bc4 {[%clk 01:28:54]} {[%emt
00:01:00]} Nd7 {[%clk 01:15:30]} {[%emt 00:16:51]} 7. Ne2 {[%clk 01:23:52]}
{[%emt 00:05:32]} a6 {[%clk 01:09:46]} {[%emt 00:06:15]} 8. O-O {[%clk
01:14:07]} {[%emt 00:10:14]} b5 {[%clk 00:46:46]} {[%emt 00:23:30]} 9. Bd3
{[%clk 01:13:27]} {[%emt 00:01:10]} Qe7 {[%clk 00:43:37]} {[%emt 00:03:39]} 10.
a4 {[%clk 01:11:37]} {[%emt 00:02:20]} Rb8 {[%clk 00:39:05]} {[%emt 00:05:02]}
11. axb5 {[%clk 01:10:05]} {[%emt 00:02:03]} axb5 {[%clk 00:39:33]} {[%emt
00:00:02]} 12. Ra7 {[%clk 01:07:48]} {[%emt 00:02:47]} c5 {[%clk 00:37:42]}
{[%emt 00:02:21]} 13. Na3 {[%clk 00:58:57]} {[%emt 00:09:21]} c4 {[%clk
00:35:25]} {[%emt 00:02:47]} 14. Bc2 {[%clk 00:53:03]} {[%emt 00:06:24]} Qd8
{[%clk 00:30:31]} {[%emt 00:05:24]} 15. b4 {[%clk 00:51:31]} {[%emt 00:02:01]}
Nf6 {[%clk 00:14:54]} {[%emt 00:16:07]} 16. e5 {[%clk 00:41:38]} {[%emt
00:10:24]} dxe5 {[%clk 00:14:58]} {[%emt 00:00:27]} 17. dxe5 {[%clk 00:41:59]}
{[%emt 00:00:08]} Nd5 {[%clk 00:15:24]} {[%emt 00:00:03]} 18. Nxc4 {[%clk
00:36:26]} {[%emt 00:06:04]} Bxb4 {[%clk 00:12:11]} {[%emt 00:03:43]} 19. cxb4
{[%clk 00:34:01]} {[%emt 00:02:56]} bxc4 {[%clk 00:12:33]} {[%emt 00:00:07]} 20.
Ba4+ {[%clk 00:32:56]} {[%emt 00:01:35]} Kf8 {[%clk 00:12:55]} {[%emt
00:00:07]} 21. Qd4 {[%clk 00:16:39]} {[%emt 00:16:47]} g6 {[%clk 00:13:19]}
{[%emt 00:00:07]} 22. Bc6 {[%clk 00:15:00]} {[%emt 00:02:09]} Kg7 {[%clk
00:10:35]} {[%emt 00:03:13]} 23. b5 {[%clk 00:13:40]} {[%emt 00:01:51]} Qb6
{[%clk 00:07:20]} {[%emt 00:03:43]} 24. Qxb6 {[%clk 00:13:14]} {[%emt
00:00:58]} Rxb6 {[%clk 00:06:11]} {[%emt 00:01:38]} 25. Rd1 {[%clk 00:06:15]}
{[%emt 00:07:29]} Nb4 {[%clk 00:05:37]} {[%emt 00:01:04]} 26. Rc7 {[%clk
00:05:33]} {[%emt 00:01:12]} Nxc6 {[%clk 00:03:33]} {[%emt 00:02:34]} 27. bxc6
{[%clk 00:05:35]} {[%emt 00:00:28]} Ba6 {[%clk 00:02:32]} {[%emt 00:01:31]} 28.
f3 {[%clk 00:02:25]} {[%emt 00:03:41]} Rc8 {[%clk 00:00:49]} {[%emt 00:02:13]}
29. Rxc8 {[%clk 00:02:25]} {[%emt 00:00:29]} Bxc8 {[%clk 00:01:17]} {[%emt
00:00:02]} 30. Nd4 {[%clk 00:02:42]} {[%emt 00:00:14]} c3 {[%clk 00:00:38]}
{[%emt 00:01:09]} 31. Rc1 {[%clk 00:02:14]} {[%emt 00:00:58]} f6 {[%clk
00:00:41]} {[%emt 00:00:27]} 32. exf6+ {[%clk 00:01:56]} {[%emt 00:00:48]} Kxf6
{[%clk 00:01:09]} {[%emt 00:00:02]} 33. Rxc3 {[%clk 00:02:09]} {[%emt
00:00:17]} e5 {[%clk 00:01:30]} {[%emt 00:00:08]} 34. Nb3 {[%clk 00:01:39]}
{[%emt 00:01:00]} Ke7 {[%clk 00:01:43]} {[%emt 00:00:17]} 35. Nd2 {[%clk
00:01:29]} {[%emt 00:00:41]} Ra6 {[%clk 00:01:20]} {[%emt 00:00:51]} 36. Re3
{[%clk 00:00:51]} {[%emt 00:01:09]} Rxc6 {[%clk 00:01:19]} {[%emt 00:00:32]} 37.
Rxe5+ {[%clk 00:01:15]} {[%emt 00:00:06]} Kf7 {[%clk 00:01:38]} {[%emt
00:00:09]} 38. Ne4 {[%clk 00:00:42]} {[%emt 00:01:05]} Bf5 {[%clk 00:01:18]}
{[%emt 00:00:49]} 39. Kf2 {[%clk 00:00:35]} {[%emt 00:00:38]} Bxe4 {[%clk
00:00:52]} {[%emt 00:00:56]} 40. fxe4 {[%clk 00:00:42]} {[%emt 00:00:23]} Rc3
{[%clk 00:00:56]} {[%emt 00:00:25]} 41. h4 {[%clk 00:29:53]} {[%emt 00:01:19]}
h5 {[%clk 00:25:28]} {[%emt 00:05:57]} 42. Rg5 {[%clk 00:24:29]} {[%emt
00:05:56]} Rc1 {[%clk 00:17:32]} {[%emt 00:08:25]} 43. Ke3 {[%clk 00:19:54]}
{[%emt 00:05:05]} Rh1 {[%clk 00:16:05]} {[%emt 00:01:56]} 44. g3 {[%clk
00:19:41]} {[%emt 00:00:44]} Re1+ {[%clk 00:11:27]} {[%emt 00:05:08]} 45. Kf3
{[%clk 00:18:56]} {[%emt 00:01:16]} Rf1+ {[%clk 00:10:54]} {[%emt 00:01:02]} 46.
Ke2 {[%clk 00:18:39]} {[%emt 00:00:47]} Ra1 {[%clk 00:11:07]} {[%emt 00:00:17]}
47. Rd5 {[%clk 00:18:05]} {[%emt 00:01:04]} Ra3 {[%clk 00:09:44]} {[%emt
00:01:53]} 48. Rd3 {[%clk 00:18:00]} {[%emt 00:00:36]} Ra5 {[%clk 00:10:04]}
{[%emt 00:00:10]} 49. Kf3 {[%clk 00:17:03]} {[%emt 00:01:26]} Ra1 {[%emt
00:07:43]} 50. Kf4 {[%clk 00:15:09]} {[%emt 00:01:55]} Ra5 {[%clk 00:03:21]}
{[%emt 00:00:29]} 51. Re3 {[%clk 00:07:54]} {[%emt 00:07:45]} Rb5 {[%clk
00:03:01]} {[%emt 00:00:50]} 52. Ra3 {[%clk 00:04:27]} {[%emt 00:03:58]} Rc5
{[%clk 00:03:14]} {[%emt 00:00:16]} 53. Ra4 {[%clk 00:03:25]} {[%emt 00:01:32]}
Kf6 {[%clk 00:02:22]} {[%emt 00:01:22]} 54. Ra6+ {[%clk 00:03:25]} {[%emt
00:00:31]} Kf7 {[%emt 00:02:14]} 55. Ra3 {[%clk 00:01:28]} {[%emt 00:00:20]}
Kf6 {[%clk 00:03:06]} {[%emt 00:00:09]} 56. Rd3 {[%clk 00:01:47]} {[%emt
00:00:12]} Ra5 {[%clk 00:03:10]} {[%emt 00:00:25]} 57. Rd5 {[%clk 00:01:24]}
{[%emt 00:00:54]} Ra3 {[%clk 00:02:55]} {[%emt 00:00:45]} 58. e5+ {[%clk
00:01:20]} {[%emt 00:00:34]} Ke7 {[%clk 00:00:52]} {[%emt 00:02:32]} 59. Rd6
{[%clk 00:00:51]} {[%emt 00:00:59]} Kf7 {[%clk 00:00:48]} {[%emt 00:00:34]} 60.
Rd4 {[%clk 00:00:36]} {[%emt 00:00:46]} Ke6 {[%clk 00:00:59]} {[%emt 00:00:19]}
61. Rb4 {[%clk 00:00:44]} {[%emt 00:00:22]} Rc3 {[%clk 00:01:16]} {[%emt
00:00:12]} 62. Rb6+ {[%clk 00:00:54]} {[%emt 00:00:21]} Kf7 {[%clk 00:01:44]}
{[%emt 00:00:02]} 63. Rb7+ {[%clk 00:00:35]} {[%emt 00:00:50]} Ke6 {[%clk
00:01:11]} {[%emt 00:01:02]} 64. Rb6+ {[%clk 00:00:34]} {[%emt 00:00:31]} Kf7
{[%clk 00:01:36]} {[%emt 00:00:05]} 65. Rb4 {[%clk 00:00:56]} {[%emt 00:00:08]}
Ke6 {[%clk 00:01:41]} {[%emt 00:00:24]} 66. Re4 {[%clk 00:01:23]} {[%emt
00:00:04]} Ra3 {[%clk 00:01:59]} {[%emt 00:00:12]} 67. g4 {[%clk 00:01:35]}
{[%emt 00:00:19]} hxg4 {[%clk 00:02:20]} {[%emt 00:00:08]} 68. Kxg4 {[%clk
00:02:03]} {[%emt 00:00:02]} Ra1 {[%clk 00:02:14]} {[%emt 00:00:36]} 69. Kg5
{[%clk 00:02:21]} {[%emt 00:00:12]} Rg1+ {[%clk 00:02:39]} {[%emt 00:00:05]} 70.
Rg4 {[%clk 00:02:49]} {[%emt 00:00:02]} Ra1 {[%clk 00:00:46]} {[%emt 00:02:22]}
71. Kxg6 {[%clk 00:02:08]} {[%emt 00:01:12]} Kxe5 {[%clk 00:01:07]} {[%emt
00:00:09]} 72. Rg2 {[%clk 00:01:03]} {[%emt 00:01:35]} Ra6+ {[%clk 00:01:11]}
{[%emt 00:00:26]} 73. Kg5 {[%clk 00:01:21]} {[%emt 00:00:11]} Ke6 {[%clk
00:01:18]} {[%emt 00:00:24]} 74. Rf2 {[%clk 00:01:38]} {[%emt 00:00:14]} Ra8
{[%clk 00:01:12]} {[%emt 00:00:35]} 75. Rf6+ {[%clk 00:00:43]} {[%emt
00:01:26]} Ke7 {[%clk 00:01:40]} {[%emt 00:00:02]} 76. h5 {[%clk 00:01:00]}
{[%emt 00:00:12]} Ra5+ {[%clk 00:01:25]} {[%emt 00:00:45]} 77. Kg6 {[%clk
00:01:26]} {[%emt 00:00:05]} Rxh5 {[%clk 00:01:33]} {[%emt 00:00:22]} 78. Kxh5
{[%clk 00:01:51]} {[%emt 00:00:04]} Kxf6 {[%clk 00:01:59]} {[%emt 00:00:04]}
1/2-1/2

[Event "Schack-SM 2023: Junior-SM"]
[Site "Helsingborg Arena, Mellersta Stenbocksgatan 14, Helsingborg, Sweden"]
[Date "2023.07.01"]
[Round "1.4"]
[White "Persson, Sebastian 2007"]
[Black "Seo, Jung Hyun"]
[Result "0-1"]
[TimeControl "90 minutes for 40 moves + 30 minutes for the rest of the game + 30 seconds per move from move one."]
[WhiteElo "1947"]
[BlackElo "2124"]

1. d4 {[%clk 01:15:53]} {[%emt 00:15:06]} Nf6 {[%clk 01:30:53]} {[%emt
00:00:07]} 2. Nf3 {[%clk 01:16:02]} {[%emt 00:00:21]} c5 {[%clk 01:31:00]}
{[%emt 00:00:23]} 3. c3 {[%clk 01:15:51]} {[%emt 00:00:41]} d5 {[%clk
01:31:12]} {[%emt 00:00:18]} 4. g3 {[%clk 01:15:59]} {[%emt 00:00:22]} Nc6
{[%clk 01:31:28]} {[%emt 00:00:14]} 5. Bg2 {[%clk 01:16:19]} {[%emt 00:00:09]}
Bf5 {[%clk 01:27:44]} {[%emt 00:04:15]} 6. O-O {[%clk 01:15:18]} {[%emt
00:01:31]} e6 {[%clk 01:27:57]} {[%emt 00:00:18]} 7. Nbd2 {[%clk 01:12:34]}
{[%emt 00:03:13]} cxd4 {[%clk 01:25:35]} {[%emt 00:02:52]} 8. Nxd4 {[%clk
01:12:55]} {[%emt 00:00:09]} Nxd4 {[%clk 01:25:58]} {[%emt 00:00:07]} 9. cxd4
{[%clk 01:13:23]} {[%emt 00:00:03]} Be7 {[%clk 01:25:22]} {[%emt 00:01:05]} 10.
Nb3 {[%clk 01:09:41]} {[%emt 00:04:12]} Rc8 {[%clk 01:22:30]} {[%emt 00:03:22]}
11. f3 {[%clk 01:03:33]} {[%emt 00:06:38]} O-O {[%clk 01:18:46]} {[%emt
00:04:14]} 12. Be3 {[%clk 01:03:36]} {[%emt 00:00:26]} Rc2 {[%clk 01:17:24]}
{[%emt 00:01:53]} 13. Rb1 {[%clk 00:52:05]} {[%emt 00:12:00]} Qb6 {[%clk
01:16:30]} {[%emt 00:01:25]} 14. Bd2 {[%clk 00:41:21]} {[%emt 00:11:14]} Rfc8
{[%clk 01:13:18]} {[%emt 00:03:41]} 15. Re1 {[%clk 00:27:14]} {[%emt 00:14:36]}
Bb4 {[%clk 00:51:17]} {[%emt 00:22:32]} 16. Bxb4 {[%clk 00:25:08]} {[%emt
00:02:35]} Qxb4 {[%clk 00:51:28]} {[%emt 00:00:20]} 17. e4 {[%clk 00:23:46]}
{[%emt 00:01:51]} dxe4 {[%clk 00:51:00]} {[%emt 00:00:58]} 18. fxe4 {[%clk
00:24:09]} {[%emt 00:00:07]} Rxg2+ {[%clk 00:49:50]} {[%emt 00:01:41]} 19. Kxg2
{[%clk 00:24:28]} {[%emt 00:00:11]} Bxe4+ {[%clk 00:49:33]} {[%emt 00:00:46]}
20. Rxe4 {[%clk 00:24:23]} {[%emt 00:00:36]} Nxe4 {[%clk 00:49:56]} {[%emt
00:00:07]} 21. Rc1 {[%clk 00:23:13]} {[%emt 00:01:40]} Rxc1 {[%clk 00:44:11]}
{[%emt 00:06:15]} 22. Qxc1 {[%clk 00:23:35]} {[%emt 00:00:08]} h6 {[%clk
00:42:17]} {[%emt 00:02:24]} 23. Qc8+ {[%clk 00:16:36]} {[%emt 00:07:29]} Kh7
{[%clk 00:42:12]} {[%emt 00:00:36]} 24. Qc2 {[%clk 00:16:59]} {[%emt 00:00:06]}
f5 {[%clk 00:42:15]} {[%emt 00:00:27]} 25. a3 {[%clk 00:15:52]} {[%emt
00:01:38]} Qa4 {[%clk 00:39:28]} {[%emt 00:03:10]} 26. Qd3 {[%clk 00:14:19]}
{[%emt 00:02:09]} Qc6 {[%clk 00:38:52]} {[%emt 00:01:06]} 27. Kg1 {[%clk
00:11:48]} {[%emt 00:03:01]} Ng5 {[%clk 00:39:00]} {[%emt 00:00:22]} 28. g4
{[%clk 00:12:00]} {[%emt 00:00:19]} Qf3 {[%clk 00:38:25]} {[%emt 00:01:04]} 29.
Qxf3 {[%clk 00:08:48]} {[%emt 00:03:43]} Nxf3+ {[%clk 00:38:53]} {[%emt
00:00:02]} 30. Kg2 {[%clk 00:08:06]} {[%emt 00:01:10]} fxg4 {[%clk 00:39:18]}
{[%emt 00:00:05]} 31. Kg3 {[%clk 00:08:29]} {[%emt 00:00:07]} b6 {[%clk
00:38:30]} {[%emt 00:01:19]} 32. Kxg4 {[%clk 00:05:35]} {[%emt 00:03:24]} Ne1
{[%clk 00:38:11]} {[%emt 00:00:50]} 33. Nd2 {[%clk 00:03:11]} {[%emt 00:02:53]}
g5 {[%clk 00:36:05]} {[%emt 00:02:36]} 34. Kg3 {[%clk 00:02:51]} {[%emt
00:00:50]} Kg6 {[%clk 00:36:05]} {[%emt 00:00:30]} 35. Nc4 {[%clk 00:02:01]}
{[%emt 00:01:20]} Nc2 {[%clk 00:35:49]} {[%emt 00:00:45]} 36. Ne5+ {[%clk
00:00:48]} {[%emt 00:01:44]} Kf5 {[%clk 00:35:44]} {[%emt 00:00:35]} 37. Nc6
{[%clk 00:00:41]} {[%emt 00:00:37]} Ke4 {[%clk 00:32:23]} {[%emt 00:03:51]} 38.
Nxa7 {[%clk 00:00:42]} {[%emt 00:00:29]} Nxd4 {[%clk 00:32:06]} {[%emt
00:00:46]} 39. Nc8 {[%clk 00:00:54]} {[%emt 00:00:18]} b5 {[%clk 00:32:08]}
{[%emt 00:00:28]} 40. Nd6+ {[%clk 00:01:09]} {[%emt 00:00:15]} Kd3 {[%clk
00:29:39]} {[%emt 00:02:59]} 41. Kg4 {[%clk 00:08:51]} {[%emt 00:22:47]} e5
{[%clk 00:57:32]} {[%emt 00:02:38]} 42. b3 {[%clk 00:09:08]} {[%emt 00:00:13]}
e4 {[%clk 00:57:38]} {[%emt 00:00:24]} 43. Nxe4 {[%clk 00:09:27]} {[%emt
00:00:10]} Kxe4 {[%clk 00:58:05]} {[%emt 00:00:04]} 44. a4 {[%clk 00:09:32]}
{[%emt 00:00:26]} b4 {[%clk 00:58:34]} 0-1